[Event "US Masters 2022"]
[Site "Charlotte"]
[Date "2022.11.27"]
[Round "7.15"]
[White "Kavutskiy, Konstantin"]
[Black "Gazik, Viktor"]
[Result "0-1"]
[ECO "B07"]
[WhiteElo "2383"]
[BlackElo "2564"]
[Annotator "TA"]
[PlyCount "134"]
[EventDate "2022.11.23"]
[EventType "swiss"]
[EventCountry "USA"]
[SourceTitle "playchess.com"]
[Source "ChessBase"]
[SourceQuality "1"]
[TimeControl "5400+30"]

{[%evp 11,134,35,64,52,44,41,37,35,54,54,58,12,37,27,34,32,59,56,30,31,45,22,28,-9,-7,-4,14,11,18,11,39,0,44,0,0,-23,-19,-12,0,0,6,0,0,0,110,0,0,0,52,57,43,43,42,42,47,48,50,4,16,14,13,11,28,15,47,43,116,62,69,50,59,54,76,29,70,0,75,75,75,75,75,75,75,-411,-411,-404,-425,-436,-398,-425,-428,-404,-383,-363,-376,-407,0,-320,0,-409,-480,-513,-513,-506,-504,-487,0,-480,0,-487,-486,-468,-408,-455,0,-448,0,-455,-370,-456,-443,-593,-568,-418,-386]} 1. d4 {[%emt 0:11:02]} d6 {[%emt 0:00:04]} 2. e4 {[%emt 0:01:18]} Nf6 {[%emt 0:00:48]} 3. Nc3 {[%emt 0:00:06]} g6 {[%emt 0:01:04]} 4. Be3 {[%emt 0:00:11]} c6 {[%emt 0:02:53]} 5. Qd2 {[%emt 0:00:41]} Nbd7 {[%emt 0:04:41]} 6. Nf3 {[%emt 0:01:16]} Qc7 {[%emt 0:02:36]} 7. Bh6 {[%emt 0:03:56] B07: Pirc Defence: Miscellaneous Systems.} b5 {[%emt 0:09:45]} 8. Bd3 {[%emt 0:00:28]} Bb7 {[%emt 0:21:04]} 9. a3 {[%emt 0:04:21] White is slightly better.} a6 {[%emt 0:01:55]} 10. O-O {[%emt 0:02:33]} e5 {[%emt 0:01:54] [#]} 11. Rae1 $146 {[%emt 0:12:56]} (11. dxe5 $14 Nxe5 12. Nxe5 dxe5 13. Rad1) ({Predecessor:} 11. Bxf8 Nxf8 12. dxe5 dxe5 13. Qg5 N8d7 14. Qh6 c5 15. Be2 Bxe4 16. Nxe4 Nxe4 17. a4 {1-0 (44) Muehlenweg,H (2295)-Hansen,M (2384) ICCF email 2003}) 11... Qd8 {[%emt 0:04:17]} 12. h3 {[%emt 0:04:57]} Bxh6 {[%emt 0:03:20]} 13. Qxh6 {[%emt 0:00:06]} Nh5 {[%emt 0:00:26]} 14. Ne2 {[%emt 0:07:46]} Qf6 {[%emt 0:01:43]} 15. c3 {[%emt 0:06:40]} Qg7 {[%emt 0:01:39]} 16. Qd2 {[%emt 0:00:22]} O-O {[%emt 0:08:09]} 17. Nh2 {[%emt 0:01:13]} c5 {[%emt 0:03:57]} 18. Bb1 {[%emt 0:09:09]} exd4 {[%emt 0:11:43]} 19. cxd4 {[%emt 0:00:53]} cxd4 {[%emt 0:03:42]} (19... Rad8 {simplifies} 20. Ng4 Nhf6 21. Nxf6+ Qxf6 22. d5 Rc8) 20. Nxd4 {[%emt 0:02:37]} Ne5 {[%emt 0:00:09]} (20... Rae8 {simplifies} 21. Ng4 Nhf6 22. Nf3 Nxg4 23. hxg4 Nc5) 21. Ba2 {[%emt 0:00:46]} Rac8 {[%emt 0:00:05]} 22. Nhf3 {[%emt 0:04:20]} Qf6 {[%emt 0:00:02]} 23. Kh2 {[%emt 0:05:29]} Nf4 {[%emt 0:00:52]} (23... Qf4+ {simplifies} 24. Qxf4 Nxf4 25. Re3 Nc4) 24. Re3 {[%emt 0:00:13]} Nc4 {[%emt 0:06:36]} 25. Bxc4 {[%emt 0:00:16]} Rxc4 {[%emt 0:01:36]} 26. Rc1 {[%emt 0:00:32]} Rfc8 {[%emt 0:01:46]} 27. Rxc4 {[%emt 0:02:06]} Rxc4 {[%emt 0:00:01]} (27... bxc4 $11 28. b3 c3 29. Rxc3 Rxc3 30. Qxc3 Bxe4) 28. b3 {[%emt 0:00:14]} ({Only move:} 28. e5 $1 $16 {[%cal Re5f6]} Qd8 29. e6 fxe6 30. Nxe6 Nxe6 31. Rxe6) 28... Rc8 $11 {[%emt 0:01:09]} 29. Qa5 {[%emt 0:02:26]} Re8 {[%emt 0:01:23]} (29... Ne6 $11 30. Qb6 Nxd4 31. Qxb7 Qf4+ 32. g3 Nxf3+ 33. Kg2 Nh4+ 34. gxh4 Rc1) 30. Qb6 $1 $14 {[%emt 0:01:12]} Qe7 {[%emt 0:00:48]} 31. Rc3 {[%emt 0:06:58] Strongly threatening Rc7.} Bxe4 {[%emt 0:00:47][%cal Ob5b4] Hoping for ...b4!} (31... Qxe4 $2 32. Re3 $18 (32. Qxd6 Nd5 $11)) 32. Qxa6 {[%emt 0:00:22]} Nd5 {[%emt 0:05:36]} 33. Rc1 {[%emt 0:00:45]} b4 {[%emt 0:00:00]} 34. Re1 {[%emt 0:00:47]} (34. a4 $14) 34... bxa3 {[%emt 0:00:00]} 35. Qxa3 {[%emt 0:00:15]} Nf6 {[%emt 0:00:32]} 36. b4 {[%emt 0:00:31]} d5 {[%emt 0:00:38]} 37. Qb2 {[%emt 0:01:45]} Nd7 {[%emt 0:00:41]} (37... Qc7+ {is more complex.} 38. g3 Rc8 39. Nd2 Qc3) 38. Kg1 {[%emt 0:00:37]} Nb6 {[%emt 0:00:06]} (38... Qf6 $14) 39. b5 {[%emt 0:01:02]} (39. Nc6 $16 Qf8 40. Ng5) 39... Nc4 {[%emt 0:00:14]} 40. Qc1 {[%emt 0:00:29] Nc6 is the strong threat.} (40. Qc3 {looks sharper.} Qf6 41. Nd2 Rc8 42. N2b3) 40... Qb4 {[%emt 0:00:20]} 41. Qa1 {[%emt 0:01:13]} h5 {[%emt 0:00:39] [#]} 42. Ng5 {[%emt 0:02:12] Pair of Knights!} (42. Nc6 $1 $16 {[%cal Rc6b4]} Qxb5 43. Nfd4) 42... Qd2 {[%emt 0:01:05]} 43. Ngf3 {[%emt 0:01:44]} (43. h4 {keeps more tension.} Nd6 44. Rc1 Qf4 45. g3) 43... Qb4 {[%emt 0:00:07]} 44. Nc6 {[%emt 0:02:06] Inhibits Qa5.} Qxb5 {[%emt 0:00:16]} 45. Nfd4 {[%emt 0:00:10]} Qc5 {[%emt 0:01:07] [#]} 46. f3 $1 {[%emt 0:00:25]} Rc8 {[%emt 0:00:24]} 47. Qa6 {[%emt 0:01:20][%mdl 8192] [#]} (47. Kh1 $16 Rxc6 48. Nxc6 Qxc6 49. fxe4 dxe4 50. Rd1) 47... Rxc6 $1 $19 {[%emt 0:00:10][%mdl 512]} 48. Qxc6 {[%emt 0:00:19]} Qxd4+ {[%emt 0:00:02]} 49. Kh1 {[%emt 0:00:12]} Bf5 {[%emt 0:01:26]} 50. Re8+ {[%emt 0:00:19]} Kg7 {[%emt 0:00:32]} 51. Qc7 {[%emt 0:00:08]} Qa1+ {[%emt 0:00:32]} 52. Kh2 {[%emt 0:00:06]} Qf6 {[%emt 0:00:06]} 53. Kh1 {[%emt 0:00:40]} Qa1+ {[%emt 0:00:33]} 54. Kh2 {[%emt 0:00:05]} Qf6 {[%emt 0:00:02]} 55. Kh1 $1 {[%emt 0:00:04]} Be6 {[%emt 0:00:12]} 56. Qc5 {[%emt 0:00:24]} Qa1+ {[%emt 0:00:08]} 57. Kh2 {[%emt 0:00:05]} Qe5+ {[%emt 0:00:02]} 58. Kh1 {[%emt 0:00:05]} Qa1+ {[%emt 0:00:17]} 59. Kh2 {[%emt 0:00:04]} Qe5+ {[%emt 0:00:02]} 60. Kh1 $1 {[%emt 0:00:05]} Kh7 {[%emt 0:00:07]} 61. Qf8 {[%emt 0:00:18]} Qa1+ {[%emt 0:00:44]} 62. Kh2 {[%emt 0:00:04]} Qe5+ {[%emt 0:00:06]} 63. Kh1 $1 {[%emt 0:00:03]} Qa1+ {[%emt 0:00:03]} 64. Kh2 {[%emt 0:00:05]} Qg7 {[%emt 0:00:03] Inhibits Qg8+.} 65. Qc5 {[%emt 0:00:19]} Qe5+ {[%emt 0:00:30]} 66. Kh1 {[%emt 0:01:00]} Nd6 {[%emt 0:00:00]} 67. Ra8 {[%emt 0:00:00]} h4 {[%emt 0:05:44] Weighted Error Value: White=0.23 (precise) /Black=0.60} 0-1

[Event "US Masters 2022"]
[Site "Charlotte"]
[Date "2022.11.27"]
[Round "7.16"]
[White "Druska, Juraj"]
[Black "Sethuraman, Sandeep"]
[Result "1-0"]
[ECO "B50"]
[WhiteElo "2511"]
[BlackElo "2371"]
[Annotator "TA"]
[PlyCount "65"]
[EventDate "2022.11.23"]
[EventType "swiss"]
[EventCountry "USA"]
[SourceTitle "playchess.com"]
[Source "ChessBase"]
[SourceQuality "1"]
[TimeControl "5400+30"]

{[%evp 9,65,0,-3,0,11,11,16,4,14,12,6,14,16,0,4,8,27,27,53,47,42,36,34,17,62,45,54,40,54,59,58,50,118,46,60,71,85,60,58,52,52,0,41,16,27,25,81,72,93,4,0,0,556,533,547,553,495,447]} 1. e4 {[%emt 0:04:10]} c5 {[%emt 0:00:05]} 2. Nf3 {[%emt 0:00:08]} d6 {[%emt 0:00:06]} 3. Nc3 {[%emt 0:00:06]} Nf6 {[%emt 0:00:12]} 4. e5 {[%emt 0:00:05]} dxe5 {[%emt 0:00:21]} 5. Nxe5 {[%emt 0:00:07]} a6 {[%emt 0:04:39]} 6. g3 {[%emt 0:00:06] B50: Sicilian: 2...d6, Miscellaneous.} Nbd7 {[%emt 0:03:49]} 7. d4 {[%emt 0:00:48]} e6 {[%emt 0:04:39] Hoping for ...cxd4.} 8. Be3 {[%emt 0:00:10] The position is equal.} Qc7 {[%emt 0:05:07]} 9. Qe2 {[%emt 0:00:03]} cxd4 {[%emt 0:05:03]} 10. Bxd4 {[%emt 0:00:07]} Bc5 {[%emt 0:01:51]} 11. Bxc5 {[%emt 0:00:07]} Qxc5 {[%emt 0:00:55]} 12. Nd3 {[%emt 0:00:06]} Qc6 {[%emt 0:01:26]} 13. Rg1 {[%emt 0:00:05]} O-O {[%emt 0:00:44]} 14. O-O-O {[%emt 0:10:38]} Rb8 {[%emt 0:07:08]} 15. g4 {[%emt 0:05:51][%cal Bg3g4,Bg4g5][%mdl 32] [#]} b5 $146 {[%emt 0:04:58]} ({Predecessor:} 15... Nd5 16. Nxd5 Qxd5 17. Kb1 e5 18. g5 Re8 19. Bg2 Qb5 20. Be4 Nf8 21. h4 Bd7 {1-0 (33) Morawietz,D (2411)-Holtel,J (2210) Germany 2018}) 16. Bg2 {[%emt 0:07:00] Against b4} (16. g5 $5 {[%cal Rg5f6]} Nd5 17. Nxd5 Qxd5 18. Nb4 $11) 16... Qc4 {[%emt 0:04:43]} 17. g5 {[%emt 0:00:54] Prevents b4.} Ne8 {[%emt 0:01:14]} 18. Kb1 {[%emt 0:32:30][%cal Oh2h4]} Nd6 {[%emt 0:06:29]} 19. h4 {[%emt 0:14:50]} b4 {[%emt 0:09:42] Against h5} 20. Ne4 {[%emt 0:01:19]} Nb5 {[%emt 0:00:33]} (20... Nf5 $14) 21. Nc1 {[%emt 0:03:14]} (21. Qg4 $16 {[%cal Oe4f6] Nf6+! is the strong threat.} Kh8 22. Nf6 $1 Qxg4 23. Nxg4) 21... Qxe2 $14 {[%emt 0:06:33]} 22. Nxe2 {[%emt 0:00:01]} Nb6 {[%emt 0:01:43]} 23. Nd4 {[%emt 0:01:16]} Nxd4 {[%emt 0:02:34]} 24. Rxd4 {[%emt 0:00:06]} a5 {[%emt 0:01:41]} 25. h5 {[%emt 0:04:56]} (25. Nc5 $14) 25... e5 {[%emt 0:02:46]} 26. Rd3 {[%emt 0:00:07]} Bf5 {[%emt 0:01:11]} 27. b3 {[%emt 0:03:54]} Bg4 {[%emt 0:06:18]} (27... Rfd8 $11 {keeps the balance.}) 28. h6 $16 {[%emt 0:01:33]} Rfd8 {[%emt 0:00:21] [#]} 29. Nc5 {[%emt 0:02:28] White is more active.} (29. Nd6 $1 $16) 29... Bf5 $1 $11 {[%emt 0:02:17]} 30. Be4 {[%emt 0:00:01]} Nd7 $2 {[%emt 0:03:53][%mdl 8192]} (30... Bxe4 $11 {and Black stays safe.} 31. Rxd8+ Rxd8 32. Nxe4 Rd4) 31. Rgd1 $18 {[%emt 0:00:42] White is clearly winning.} Re8 {[%emt 0:02:11]} 32. Nxd7 {[%emt 0:01:38]} Bxe4 {[%emt 0:00:05]} 33. Re3 {[%emt 0:00:05] Weighted Error Value: White=0.13 (very precise) /Black=0.33} 1-0

[Event "US Masters 2022"]
[Site "Charlotte"]
[Date "2022.11.27"]
[Round "7.17"]
[White "Escobar Forero, Alder"]
[Black "Williams, Justus"]
[Result "1-0"]
[ECO "B42"]
[WhiteElo "2510"]
[BlackElo "2395"]
[Annotator "TA"]
[PlyCount "85"]
[EventDate "2022.11.23"]
[EventType "swiss"]
[EventCountry "USA"]
[SourceTitle "playchess.com"]
[Source "ChessBase"]
[SourceQuality "1"]
[TimeControl "5400+30"]

{[%evp 11,85,34,46,22,37,41,28,16,31,0,0,0,0,-25,0,0,110,110,110,-163,92,110,133,121,135,130,425,325,347,337,428,420,428,426,371,0,0,0,0,0,0,0,0,0,56,0,344,54,204,-79,-75,-104,-44,-38,-11,-64,-66,-94,0,0,0,0,0,-16,-11,-13,122,114,199,203,199,211,227,221,29998,29999]} 1. e4 {[%emt 0:00:16]} c5 {[%emt 0:03:49]} 2. Nf3 {[%emt 0:00:15]} e6 {[%emt 0:02:30]} 3. d4 {[%emt 0:00:26]} cxd4 {[%emt 0:00:12]} 4. Nxd4 {[%emt 0:00:09]} a6 {[%emt 0:00:42]} 5. Bd3 {[%emt 0:00:38]} Bc5 {[%emt 0:00:38]} 6. Nb3 {[%emt 0:00:22]} Be7 {[%emt 0:00:24]} 7. Qe2 {[%emt 0:01:48] B42: Sicilian: Kan Variation: 5 Bd3.} d6 {[%emt 0:02:28]} 8. Be3 {[%emt 0:00:24] has lost popularity (8.0-0).} Nc6 {[%emt 0:01:13]} 9. N1d2 {[%emt 0:01:10] White has an edge.} Nf6 {[%emt 0:02:08]} 10. f4 {[%emt 0:08:40]} Nb4 {[%emt 0:05:16]} 11. O-O {[%emt 0:01:41][%cal Bh1f1,Bf1f3,Bf3h3][%mdl 32]} O-O {[%emt 0:03:58]} 12. Nd4 {[%emt 0:04:02] [#]} Bd7 $146 {[%emt 0:06:44]} ({Predecessor:} 12... Qc7 13. Kh1 b5 14. a3 Nxd3 15. cxd3 Bb7 16. b4 Rac8 17. N2b3 Qd7 18. Ra2 g6 {0-1 (43) Vaseptsov,M (2223)-Maletin,P (2596) Izhevsk 2012}) 13. e5 {[%emt 0:18:10]} Ne8 {[%emt 0:12:26] [#]} (13... dxe5 $11 {keeps the balance.} 14. fxe5 Nfd5) 14. Bxh7+ $1 $16 {[%emt 0:20:07][%mdl 512]} Kxh7 {[%emt 0:00:17]} 15. Qh5+ {[%emt 0:00:04]} Kg8 {[%emt 0:00:07]} 16. Rf3 $1 {[%emt 0:00:24] White is more active.} f5 {[%emt 0:04:10] Inhibits Ne4.} 17. Rh3 {[%emt 0:04:39]} Nd5 {[%emt 0:08:47]} 18. Re1 {[%emt 0:18:10] And now N2f3 would win.} dxe5 $2 {[%emt 0:07:11][%mdl 8192]} (18... Nef6 $16 19. exf6 Nxf6) 19. Qh7+ {[%emt 0:07:19]} (19. fxe5 Nxe3 20. Rexe3 Bc5 $11) 19... Kf7 {[%emt 0:00:11] [#]} 20. N2f3 $1 {[%emt 0:00:41]} Bf6 {[%emt 0:16:01]} (20... exd4 $2 21. Ne5+ Kf6 22. Qg6#) (20... Bb4 21. Nxe5+) 21. fxe5 {[%emt 0:00:37]} Nxe3 {[%emt 0:05:50]} 22. Rxe3 {[%emt 0:02:22]} (22. exf6 Qxf6 23. Rxe3 Ke7 $18) 22... Be7 {[%emt 0:00:48]} 23. Nxf5 $2 {[%emt 0:09:36]} Bc5 $11 {[%emt 0:02:55]} (23... exf5 $2 24. e6+ Bxe6 25. Ne5+ Kf6 26. Qg6#) 24. Qh5+ {[%emt 0:00:00]} Kg8 {[%emt 0:00:02]} 25. Qh7+ {[%emt 0:00:00]} Kf7 {[%emt 0:00:03]} 26. Qh5+ {[%emt 0:00:00]} Kg8 {[%emt 0:00:07]} 27. N5d4 {[%emt 0:00:15]} Bb5 {[%emt 0:01:34]} (27... Rf4 $1 $11 28. c3 (28. Ng5 Qxg5 29. Qxg5 Rxd4 $11) 28... Bb5) 28. c3 {[%emt 0:01:37]} (28. Nxe6 $2 Bxe3+ 29. Kh1 Qd1+) (28. Rh4 $1 $14 Rf5 29. Nxf5 exf5 30. Qh7+ Kf8 31. Qxf5+ Ke7 32. Qg5+ Kd7 33. Qg4+ (33. Qf4 Nc7 $15) 33... Ke7 34. Qg5+ Kd7 35. Qg4+ (35. Qf4 Nc7 $15) 35... Ke7 36. Qg5+) 28... Rf5 $2 {[%emt 0:04:44][%mdl 8192]} 29. Qh7+ $2 {[%emt 0:00:29]} (29. Nxf5 Qd1+ 30. Kf2 exf5 31. Qh7+ (31. Nd4 $2 Qf1+ 32. Kg3 f4+ 33. Kg4 Bd7+ 34. Kg5 Qxg2+ 35. Kxf4 Nf6 $19) 31... Kf8 32. Qxf5+ Ke7 33. Qg5+ Kd7 $11) (29. Qg6 Qd5 $11) ({White must play} 29. Qh8+ $1 $18 Kf7 30. g4 Bxd4 31. cxd4 Rxf3 32. Rhxf3+ Ke7 33. Qf8+ Kd7 34. Rc3 (34. Rf7+ Kc8 $16)) 29... Kf7 {[%emt 0:00:04]} (29... Kf8 $1 $14) 30. Nxf5 $2 {[%emt 0:00:31] Really sharp!} (30. g4 $1 $18 {[%cal Rg4f5]} Bxd4 31. cxd4 Rxf3 32. Rexf3+ (32. Rhxf3+ Ke7 $16) 32... Ke7 33. Qh4+ Kd7 34. Rf7+ Kc6 35. d5+ Qxd5 36. Rc3+ Bc4 37. Rc1 (37. Qe7 b5 $15)) 30... Qd1+ $17 {[%emt 0:01:17][%mdl 64] Zwischenzug} 31. Kf2 {[%emt 0:00:01] White threatens Ng5+ and mate.} Qc2+ {[%emt 0:01:24]} ({Don't do} 31... exf5 32. Qxf5+ Ke7 33. Qg5+ Kd7 34. Nd4 Bxd4 35. cxd4 Qxd4 36. Rhf3 $11 (36. Kg3 Qxb2 37. Rh8 Kc7 $11)) (31... Qe2+ $6 32. Kg3 Bxe3 33. Qh5+ Kf8 34. Qh8+ Kf7 35. Qh5+ Kf8 36. Qh8+ Kf7 37. Qh5+ $11) (31... Bxe3+ $17 32. Nxe3 (32. Kxe3 Qc1+ 33. Kf2 Qc2+ 34. Ke3 Qxf5 $17) 32... Qe2+ 33. Kg3 Qxe3 34. Qh5+ Ke7) 32. Kg3 $15 {[%emt 0:00:49] White wants to mate with Ng5+.} Qxf5 {[%emt 0:00:23]} 33. Qxf5+ {[%emt 0:00:43]} ({White should try} 33. Re1 $11) 33... exf5 {[%emt 0:00:09]} 34. Re1 {[%emt 0:00:21]} Rd8 {[%emt 0:00:27]} (34... Nc7 $17 35. Rh5 Bd7) 35. Rh8 $11 {[%emt 0:00:29]} Rd3 {[%emt 0:01:32] Strongly threatening ...g6.} 36. Kf4 $36 {[%emt 0:00:12][%mdl 2048] Black is under pressure.} Bf2 {[%emt 0:00:17] A strong pair of Bishops.} 37. e6+ {[%emt 0:00:54]} (37. Re2 $5 {[%cal Re2f2]} Bb6 38. Re1 $11 (38. Kxf5 $2 {too greedy.} Rxf3+ 39. gxf3 Bxe2 $19)) 37... Ke7 {[%emt 0:00:21]} 38. Re5 $1 {[%emt 0:00:04]} Rd8 {[%emt 0:02:21]} ({Much less strong is} 38... Nd6 39. Rg8 $14) (38... Bc6 $11 {remains equal.}) 39. Rxf5 $16 {[%emt 0:00:32] Threatens to win with Rf7+.} Kxe6 {[%emt 0:00:59] [#]} (39... Rc8 $16) 40. Ng5+ $1 $18 {[%emt 0:00:08]} Kd7 {[%emt 0:00:16] [#]} 41. Rf7+ $1 {[%emt 0:00:35]} Kc8 {[%emt 0:01:06]} 42. Ne6 $1 {[%emt 0:00:10][%csl LRd8,LRg7]} Rd7 {[%emt 0:00:10]} (42... g5+ $18 43. Kxg5 Be3+ 44. Kh4 Rd2) 43. Rxe8+ {[%emt 0:00:11] Weighted Error Value: White=0.36/Black=0.71} 1-0

[Event "US Masters 2022"]
[Site "Charlotte"]
[Date "2022.11.27"]
[Round "7.18"]
[White "Brodsky, David"]
[Black "Ippolito, Dean"]
[Result "1/2-1/2"]
[ECO "C65"]
[WhiteElo "2509"]
[BlackElo "2368"]
[Annotator "TA"]
[PlyCount "96"]
[EventDate "2022.11.23"]
[EventType "swiss"]
[EventCountry "USA"]
[SourceTitle "playchess.com"]
[Source "ChessBase"]
[SourceQuality "1"]
[TimeControl "5400+30"]

{[%evp 9,96,0,10,7,19,19,19,25,26,14,18,22,20,0,3,0,0,2,9,0,0,0,0,0,0,0,85,76,93,85,93,88,96,94,87,93,80,51,30,4,8,10,20,0,0,0,0,0,0,0,0,0,0,0,0,0,-8,-8,-8,-12,-8,-8,-8,-63,0,-7,-8,-8,0,0,0,0,0,0,0,0,0,0,0,0,0,0,0,-8,8,8,8,8,8]} 1. e4 {[%emt 0:01:51]} e5 {[%emt 0:00:05]} 2. Nf3 {[%emt 0:00:07]} Nc6 {[%emt 0:00:04]} 3. Bb5 {[%emt 0:00:05]} Nf6 {[%emt 0:00:10]} 4. d3 {[%emt 0:00:08]} Bc5 {[%emt 0:00:16]} 5. Bg5 {[%emt 0:00:04]} h6 {[%emt 0:02:18]} 6. Bh4 {[%emt 0:00:16] C65: Ruy Lopez: Berlin Defence (3...Nf6), unusual lines and 4 0-0 Bc5.} Nd4 {[%emt 0:17:57]} 7. Nxd4 {[%emt 0:00:15]} Bxd4 {[%emt 0:00:03]} 8. c3 {[%emt 0:00:09]} Bb6 {[%emt 0:00:05]} 9. Nd2 {[%emt 0:00:07][%cal Od3d4]} c6 {[%emt 0:00:29]} 10. Ba4 {[%emt 0:00:07][%cal Od3d4]} d6 {[%emt 0:02:08]} 11. Nc4 {[%emt 0:04:36]} Bc7 {[%emt 0:03:26]} 12. Ne3 {[%emt 0:00:32] [#]} Be6 $146 {[%emt 0:00:34]} ({Predecessor:} 12... Bb6 13. Bb3 g5 14. Bg3 Bxe3 15. fxe3 Bg4 16. Qd2 Nh5 17. O-O O-O 18. Be1 Qe7 {½-½ (68) Carlsen,M (2837)-So,W (2788) London 2017}) 13. Bb3 {[%emt 0:11:54]} Qe7 {[%emt 0:13:32]} 14. Qf3 {[%emt 0:05:16]} g5 {[%emt 0:06:54]} 15. Bg3 {[%emt 0:00:06]} h5 {[%emt 0:10:07] [#] aiming for ...g4.} 16. h4 {[%emt 0:07:15]} g4 {[%emt 0:01:08]} 17. Qe2 {[%emt 0:00:04]} d5 {[%emt 0:03:47]} (17... O-O-O $11 {remains equal.}) 18. exd5 $16 {[%emt 0:05:43]} Nxd5 {[%emt 0:00:16]} 19. Nxd5 {[%emt 0:02:31]} Bxd5 {[%emt 0:00:04]} 20. Bxd5 {[%emt 0:00:09]} cxd5 {[%emt 0:00:03]} 21. d4 {[%emt 0:00:16]} O-O-O {[%emt 0:00:09]} 22. dxe5 {[%emt 0:02:39]} (22. Bxe5 $2 Rde8 23. f4 gxf3 24. gxf3 f6 $19) 22... Bxe5 {[%emt 0:08:06][%mdl 64]} 23. Bxe5 {[%emt 0:09:43]} ({Reject} 23. Qxe5 Qxe5+ 24. Bxe5 Rhe8 $11) 23... Rhe8 {[%emt 0:00:06] [#]} 24. O-O-O $1 {[%emt 0:00:10]} Qxe5 {[%emt 0:00:30]} 25. Qd2 {[%emt 0:03:36]} Qe4 {[%emt 0:02:15]} 26. Rhe1 {[%emt 0:05:59]} (26. g3 $5 {[%cal Rh1e1]}) 26... Qxg2 {[%emt 0:00:07]} 27. Rxe8 {[%emt 0:10:13]} Rxe8 {[%emt 0:00:04]} 28. Qxd5 {[%emt 0:00:07]} Qxd5 {[%emt 0:00:07]} 29. Rxd5 $11 {[%emt 0:00:03][%mdl 4096] Endgame KR-KR} Re2 {[%emt 0:01:59]} 30. Rf5 {[%emt 0:00:14]} Kd7 {[%emt 0:00:09] White must now prevent ...Ke6.} 31. Rxf7+ {[%emt 0:00:51]} Ke6 {[%emt 0:00:45]} 32. Rf8 {[%emt 0:01:41]} Kd5 {[%emt 0:01:47]} 33. Kb1 {[%emt 0:05:44]} Ke4 {[%emt 0:27:30]} 34. Rf7 {[%emt 0:03:40]} b5 {[%emt 0:00:00]} 35. a4 $1 {[%emt 0:02:50]} (35. Rxa7 $2 {is the wrong capture.} Rxf2 36. Rg7 Kf4 $19) 35... bxa4 {[%emt 0:00:00]} 36. Ka2 {[%emt 0:00:21]} a6 {[%emt 0:00:00]} (36... Rd2 $15) 37. Ka3 {[%emt 0:01:52] The position is equal.} Rc2 {[%emt 0:00:00]} 38. Rf6 {[%emt 0:03:31]} a5 {[%emt 0:00:00]} 39. Rf8 {[%emt 0:01:42]} Re2 {[%emt 0:01:36]} 40. c4 {[%emt 0:07:07] Re8+ is the strong threat.} Kd4 {[%emt 0:01:54]} 41. Rf4+ {[%emt 0:02:02]} Ke5 {[%emt 0:00:30]} 42. Rf8 {[%emt 0:00:15] White threatens Re8+ and mate.} Kd4 {[%emt 0:00:30]} 43. Rf5 {[%emt 0:01:09]} Kxc4 {[%emt 0:00:30]} 44. Rxh5 {[%emt 0:01:32]} Rxf2 {[%emt 0:00:30]} (44... Re1 $5 45. Ka2 $8 a3 $11) 45. Rxa5 {[%emt 0:04:28]} g3 {[%emt 0:00:00]} 46. Rxa4+ {[%emt 0:00:00]} Kb5 {[%emt 0:00:00]} 47. Rg4 {[%emt 0:00:00]} Rh2 {[%emt 0:00:00]} 48. Rxg3 {[%emt 0:00:00]} Rxh4 {[%emt 0:00:00] Weighted Error Value: White=0.03 (flawless) /Black=0.09 (flawless)} 1/2-1/2